fUSD/lending_fUSD_20250215
["ID","MTS","AMOUNT","RATE_DAILY","PERIOD"]
[353150762,1739611902498,-743.87,0.0001252,2]
[353150763,1739611902507,-1009.67,0.0001252,2]
[353150764,1739611902516,-2982.91,0.0001252,2]
[353150765,1739611902527,-995.96,0.0001252,2]
[353150766,1739611902536,-1159.35,0.0001252,2]
[353150767,1739611902546,-581.33,0.0001252,2]
[353150768,1739611902556,-779.91,0.0001252,2]
[353150769,1739611902565,-735.73,0.0001252,2]
[353150770,1739611902574,-1222.91,0.0001252,2]
[353150771,1739611902584,-1141.54,0.0001252,2]
[353150772,1739611902593,-657.56,0.0001252,2]
[353150773,1739611902603,-921.4,0.0001252,2]
[353150774,1739611902614,-802.93,0.0001252,2]
[353150775,1739611902623,-560.26,0.0001252,2]
[353150776,1739611902633,-646.72,0.0001252,2]
[353150777,1739611902643,-1756.73,0.0001252,2]
[353150778,1739611902652,-2263.15,0.0001252,2]
[353150779,1739611902662,-630.63,0.0001252,2]
[353150780,1739611902672,-645.55,0.0001252,2]
[353150781,1739611902684,-500.0,0.0001252,2]
[353150782,1739611902694,-904.92,0.0001252,2]
[353150783,1739611902704,-864.22,0.0001252,2]
[353150784,1739611902714,-500.0,0.0001252,2]
[353150785,1739611902724,-830.74,0.0001252,2]
[353150786,1739611902734,-769.25,0.0001252,2]
[353150787,1739611902744,-897.43,0.0001252,2]
[353150788,1739611902755,-1011.81,0.0001252,2]
[353150789,1739611902765,-500.0,0.0001252,2]
[353150790,1739611902778,-1292.79,0.0001252,2]
[353150791,1739611902788,-500.0,0.0001252,2]
[353150792,1739611902798,-1639.04,0.0001252,2]
[353150793,1739611902807,-695.46,0.0001252,2]
[353150794,1739611902817,-746.86,0.0001252,2]
[353150795,1739611902826,-850.54,0.0001252,2]
[353150796,1739611902836,-734.88,0.0001252,2]
[353150797,1739611902846,-1135.06,0.0001252,2]
[353150798,1739611902856,-834.87,0.0001252,2]
[353150799,1739611902865,-505.21,0.0001252,2]
[353150800,1739611902875,-622.66,0.0001252,2]
[353150801,1739611902884,-824.06,0.0001252,2]
[353150802,1739611902894,-1491.64,0.0001252,2]
[353150803,1739611902904,-587.54,0.0001252,2]
[353150804,1739611902913,-510.9,0.0001252,2]
[353150805,1739611902922,-500.0,0.0001252,2]
[353150806,1739611902931,-411.04003379,0.0001252,2]
[353150807,1739611903229,-687.65996621,0.0001252,2]
[353150808,1739611903240,-442.18503364,0.0001252,2]
[353150809,1739611903251,-437.00496636,0.0001252,2]
[353150810,1739611903261,-697.57,0.0001252,2]
[353150811,1739611903270,-845.88,0.0001252,2]
[353150812,1739611903283,-500.0,0.0001252,2]
[353150813,1739611903293,-500.0,0.0001252,2]
[353150814,1739611903303,-927.84,0.0001252,2]
[353150815,1739611903313,-500.0,0.0001252,2]
[353150816,1739611903323,-910.15,0.0001252,2]
[353150817,1739611903332,-1188.23,0.0001252,2]
[353150818,1739611903342,-677.74,0.0001252,2]
[353150819,1739611903352,-1676.44,0.0001252,2]
[353150820,1739611903362,-964.59,0.0001252,2]
[353150821,1739611903372,-1174.04,0.0001252,2]
[353150822,1739611903382,-728.47,0.0001252,2]
[353150823,1739611903392,-703.23,0.0001252,2]
[353150824,1739611903402,-150.57578737,0.0001252,2]
[353150825,1739611903411,-688.37815102,0.0001252,2]
[353150826,1739611903423,-397.70184898,0.0001252,2]
[353150827,1739611903433,-957.02,0.0001252,2]
[353150828,1739611903444,-1604.66,0.0001252,2]
[353150829,1739611903455,-748.0,0.0001252,2]
[353150830,1739611903465,-623.33,0.0001252,2]
[353150831,1739611903475,-704.0,0.0001252,2]
[353150832,1739611903484,-2157.01,0.0001252,2]
[353150833,1739611903493,-355.96040507,0.00012586,2]
[353150834,1739611903503,-1356.16,0.00012601,2]
[353150835,1739611903512,-533.638194,0.00012602,2]
[353150836,1739611903521,-569.681091,0.00012602,2]
[353150837,1739611903533,-500.0,0.00012602,2]
[353150838,1739611903542,-661.16,0.00012602,2]
[353150839,1739611903551,-602.88,0.00012602,2]
[353150840,1739611903561,-602.21,0.00012602,2]
[353150841,1739611903571,-559.76,0.00012602,2]
[353150842,1739611903581,-500.0,0.00012602,2]
[353150843,1739611903590,-642.55,0.00012602,2]
[353150844,1739611903601,-500.0,0.00012602,2]
[353150845,1739611903614,-509.2,0.00012602,2]
[353150846,1739611903623,-583.23,0.00012602,2]
[353150847,1739611903633,-588.51,0.00012602,2]
[353150848,1739611903643,-666.54,0.00012602,2]
[353150849,1739611903652,-553.58,0.00012602,2]
[353150850,1739611903661,-656.03,0.00012602,2]
[353150851,1739611903671,-569.62,0.00012602,2]
[353150852,1739611903680,-500.0,0.00012602,2]
[353150853,1739611903691,-628.27,0.00012602,2]
[353150854,1739611903700,-619.35,0.00012602,2]
[353150855,1739611903710,-682.02,0.00012602,2]
[353150856,1739611903720,-572.09,0.00012602,2]
[353150857,1739611903729,-812.88,0.00012602,2]
[353150858,1739611903739,-500.0,0.00012602,2]
[353150859,1739611903748,-672.16,0.00012602,2]
[353150860,1739611903759,-500.0,0.00012602,2]
[353150861,1739611903769,-575.78,0.00012602,2]
[353150862,1739611903781,-615.98,0.00012602,2]
[353150863,1739611903791,-500.0,0.00012602,2]
[353150864,1739611903800,-500.0,0.00012602,2]
[353150865,1739611903810,-500.0,0.00012602,2]
[353150866,1739611903819,-69.45991918,0.00012602,2]
[353150867,1739611903845,-376.00682433,0.00012602,2]
[353150868,1739611903855,-691.81,0.00012602,2]
[353150869,1739611903866,-778.06,0.00012602,2]
[353150870,1739611903876,-648.19,0.00012602,2]
[353150871,1739611903885,-536.79,0.00012602,2]
[353150872,1739611903895,-638.9,0.00012602,2]
[353150873,1739611903904,-392.56750335,0.00012602,2]
[353150874,1739611903914,-1073.44,0.00012602,2]
[353150875,1739611903924,-676.69,0.00012602,2]
[353150876,1739611903934,-568.45,0.00012602,2]
[353150877,1739611903944,-1057.92,0.00012602,2]
[353150878,1739611903955,-1086.69,0.00012602,2]
[353150879,1739611903965,-500.0,0.00012602,2]
[353150880,1739611903975,-829.19,0.00012602,2]
[353150881,1739611903984,-500.0,0.00012602,2]
[353150882,1739611903994,-793.24,0.00012602,2]
[353150883,1739611904004,-615.24,0.00012602,2]
[353150884,1739611904014,-783.17,0.00012602,2]
[353150885,1739611904026,-991.47,0.00012602,2]
[353150886,1739611904036,-1433.75,0.00012602,2]
[353150887,1739611904046,-971.58,0.00012602,2]
[353150888,1739611904056,-789.55,0.00012602,2]
[353150889,1739611904066,-552.21,0.00012602,2]
[353150890,1739611904076,-1175.04,0.00012602,2]
[353150891,1739611904085,-500.0,0.00012602,2]
[353150892,1739611904095,-731.56,0.00012602,2]
[353150893,1739611904105,-2056.44,0.00012602,2]
[353150894,1739611904115,-529.5,0.00012602,2]
[353150895,1739611904125,-895.05,0.00012602,2]
[353150896,1739611904136,-717.51,0.00012602,2]
[353150897,1739611904145,-610.86,0.00012602,2]
[353150898,1739611904155,-1754.36,0.00012602,2]
[353150899,1739611904165,-743.87,0.00012602,2]
[353150900,1739611904174,-1009.67,0.00012602,2]
[353150901,1739611904184,-2688.72567219,0.00012602,2]
[353150902,1739611904196,-294.18432781,0.00012602,2]
[353150903,1739611904206,-452.42317089,0.00012602,2]
[353150904,1739611904427,-543.53682911,0.00012602,2]
[353150905,1739611904437,-1159.35,0.00012602,2]
[353150906,1739611904447,-535.26317389,0.00012602,2]
[353150907,1739611904469,-46.06682611,0.00012602,2]
[353150908,1739611904479,-779.91,0.00012602,2]
[353150909,1739611904489,-735.73,0.00012602,2]
[353150910,1739611904499,-1222.91,0.00012602,2]
[353150911,1739611904509,-1141.54,0.00012602,2]
[353150912,1739611904519,-657.56,0.00012602,2]
[353150913,1739611904530,-921.4,0.00012602,2]
[353150914,1739611904540,-802.93,0.00012602,2]
[353150915,1739611904550,-560.26,0.00012602,2]
[353150916,1739611904560,-646.72,0.00012602,2]
[353150917,1739611904570,-1756.73,0.00012602,2]
[353150918,1739611904580,-2263.15,0.00012602,2]
[353150919,1739611904589,-630.63,0.00012602,2]
[353150920,1739611904599,-645.55,0.00012602,2]
[353150921,1739611904611,-500.0,0.00012602,2]
[353150922,1739611904621,-904.92,0.00012602,2]
[353150923,1739611904631,-864.22,0.00012602,2]
[353150924,1739611904640,-500.0,0.00012602,2]
[353150925,1739611904650,-830.74,0.00012602,2]
[353150926,1739611904660,-769.25,0.00012602,2]
[353150927,1739611904670,-897.43,0.00012602,2]
[353150928,1739611904679,-1011.81,0.00012602,2]
[353150929,1739611904690,-295.44634596,0.00012602,2]
[353150930,1739611904701,-1292.79,0.00012602,2]
[353150931,1739611904711,-500.0,0.00012602,2]
[353150932,1739611904721,-1639.04,0.00012602,2]
[353150933,1739611904731,-695.46,0.00012602,2]
[353150934,1739611904741,-746.86,0.00012602,2]
[353150935,1739611904750,-850.54,0.00012602,2]
[353150936,1739611904760,-734.88,0.00012602,2]
[353150937,1739611904770,-1135.06,0.00012602,2]
[353150938,1739611904782,-834.87,0.00012602,2]
[353150939,1739611904792,-505.21,0.00012602,2]
[353150940,1739611904802,-622.66,0.00012602,2]
[353150941,1739611904812,-824.06,0.00012602,2]
[353150942,1739611904822,-1491.64,0.00012602,2]
[353150943,1739611904832,-587.54,0.00012602,2]
[353150944,1739611904842,-510.9,0.00012602,2]
[353150945,1739611904852,-205.47911987,0.00012602,2]
[353150946,1739611904862,-487.50864183,0.00012602,2]
[353150947,1739611904876,-611.19135817,0.00012602,2]
[353150948,1739611904886,-879.19,0.00012602,2]
[353150949,1739611904895,-697.57,0.00012602,2]
[353150950,1739611904905,-845.88,0.00012602,2]
[353150951,1739611904914,-500.0,0.00012602,2]
[353150952,1739611904924,-500.0,0.00012602,2]
[353150953,1739611904933,-927.84,0.00012602,2]
[353150954,1739611904943,-500.0,0.00012602,2]
[353150955,1739611904952,-910.15,0.00012602,2]
[353150956,1739611904963,-1188.23,0.00012602,2]
[353150957,1739611904972,-677.74,0.00012602,2]
[353150958,1739611904982,-1676.44,0.00012602,2]
[353150959,1739611904992,-964.59,0.00012602,2]
[353150960,1739611905002,-1174.04,0.00012602,2]
[353150961,1739611905012,-728.47,0.00012602,2]
[353150962,1739611905022,-703.23,0.00012602,2]
[353150963,1739611905034,-1086.08,0.00012602,2]
[353150964,1739611905044,-1604.66,0.00012602,2]
[353150965,1739611905054,-957.02,0.00012602,2]
[353150966,1739611905064,-748.0,0.00012602,2]
[353150967,1739611905074,-623.33,0.00012602,2]
[353150968,1739611905084,-704.0,0.00012602,2]
[353150969,1739611905093,-2157.01,0.00012602,2]
[353150970,1739611905103,-500.0,0.00012629,2]
[353150971,1739611905113,-533.638194,0.00012684,2]
[353150972,1739611905123,-569.681091,0.00012684,2]
[353150973,1739611905286,-500.0,0.00012684,2]
[353150974,1739611905302,-661.16,0.00012684,2]
[353150975,1739611905312,-602.88,0.00012684,2]
[353150976,1739611905321,-602.21,0.00012684,2]
[353150977,1739611905331,-559.76,0.00012684,2]
[353150978,1739611905341,-500.0,0.00012684,2]
[353150979,1739611905350,-642.55,0.00012684,2]
[353150980,1739611905359,-500.0,0.00012684,2]
[353150981,1739611905368,-509.2,0.00012684,2]
[353150982,1739611905378,-583.23,0.00012684,2]
[353150983,1739611905388,-588.51,0.00012684,2]
[353150984,1739611905398,-666.54,0.00012684,2]
[353150985,1739611905407,-553.58,0.00012684,2]
[353150986,1739611905417,-656.03,0.00012684,2]
[353150987,1739611905427,-569.62,0.00012684,2]
[353150988,1739611905436,-364.68074155,0.00012684,2]
[353150989,1739611905445,-628.27,0.00012684,2]
[353150990,1739611905455,-619.35,0.00012684,2]
[353150991,1739611905465,-682.02,0.00012684,2]
[353150992,1739611905475,-572.09,0.00012684,2]
[353150993,1739611905484,-812.88,0.00012684,2]
[353150994,1739611905493,-500.0,0.00012684,2]
[353150995,1739611905502,-672.16,0.00012684,2]
[353150996,1739611905512,-500.0,0.00012684,2]
[353150997,1739611905521,-575.78,0.00012684,2]
[353150998,1739611905532,-615.98,0.00012684,2]
[353150999,1739611905541,-500.0,0.00012684,2]
[353151000,1739611905551,-500.0,0.00012684,2]
[353151001,1739611905561,-500.0,0.00012684,2]
[353151002,1739611905570,-691.81,0.00012684,2]
[353151003,1739611905580,-778.06,0.00012684,2]
[353151004,1739611905590,-536.79,0.00012684,2]
[353151005,1739611905601,-638.9,0.00012684,2]
[353151006,1739611905613,-676.69,0.00012684,2]
[353151007,1739611905622,-568.45,0.00012684,2]
[353151008,1739611905632,-1057.92,0.00012684,2]
[353151009,1739611905642,-1086.69,0.00012684,2]
[353151010,1739611905653,-500.0,0.00012684,2]
[353151011,1739611905662,-829.19,0.00012684,2]
[353151012,1739611905672,-500.0,0.00012684,2]
[353151013,1739611905683,-793.24,0.00012684,2]
[353151014,1739611905694,-615.24,0.00012684,2]
[353151015,1739611905704,-783.17,0.00012684,2]
[353151016,1739611905713,-991.47,0.00012684,2]
[353151017,1739611905722,-1433.75,0.00012684,2]
[353151018,1739611905733,-971.58,0.00012684,2]
[353151019,1739611905743,-789.55,0.00012684,2]
[353151020,1739611905753,-552.21,0.00012684,2]
[353151021,1739611905763,-1175.04,0.00012684,2]
[353151022,1739611905774,-500.0,0.00012684,2]
[353151023,1739611905786,-731.56,0.00012684,2]
[353151024,1739611905796,-2056.44,0.00012684,2]
[353151025,1739611905805,-529.5,0.00012684,2]
[353151026,1739611905815,-895.05,0.00012684,2]
[353151027,1739611905826,-717.51,0.00012684,2]
[353151028,1739611905835,-610.86,0.00012684,2]
[353151029,1739611905848,-1754.36,0.00012684,2]
[353151030,1739611905858,-743.87,0.00012684,2]
[353151031,1739611905868,-1009.67,0.00012684,2]
[353151032,1739611905878,-2982.91,0.00012684,2]
[353151033,1739611905888,-995.96,0.00012684,2]
[353151034,1739611905898,-1159.35,0.00012684,2]
[353151035,1739611905907,-581.33,0.00012684,2]
[353151036,1739611905916,-779.91,0.00012684,2]
[353151037,1739611905928,-735.73,0.00012684,2]
[353151038,1739611905938,-1222.91,0.00012684,2]
[353151039,1739611905947,-1141.54,0.00012684,2]
[353151040,1739611905957,-921.4,0.00012684,2]
[353151041,1739611905967,-657.56,0.00012684,2]
[353151042,1739611905976,-802.93,0.00012684,2]
[353151043,1739611905986,-560.26,0.00012684,2]
[353151044,1739611905995,-646.72,0.00012684,2]
[353151045,1739611906005,-1756.73,0.00012684,2]
[353151046,1739611906014,-2263.15,0.00012684,2]
[353151047,1739611906023,-630.63,0.00012684,2]
[353151048,1739611906034,-645.55,0.00012684,2]
[353151049,1739611906043,-615.2508621,0.00012684,2]
[353151050,1739611906053,-904.92,0.00012684,2]
[353151051,1739611906063,-864.22,0.00012684,2]
[353151052,1739611906073,-288.79878383,0.00012684,2]
[353151053,1739611906083,-830.74,0.00012684,2]
[353151054,1739611906093,-769.25,0.00012684,2]
[353151055,1739611906102,-897.43,0.00012684,2]
[353151056,1739611906112,-1011.81,0.00012684,2]
[353151057,1739611906122,-1292.79,0.00012684,2]
[353151058,1739611906132,-500.0,0.00012684,2]
[353151059,1739611906141,-1639.04,0.00012684,2]
[353151060,1739611906150,-695.46,0.00012684,2]
[353151061,1739611906159,-746.86,0.00012684,2]
[353151062,1739611906169,-850.54,0.00012684,2]
[353151063,1739611906178,-734.88,0.00012684,2]
[353151064,1739611906188,-1135.06,0.00012684,2]
[353151065,1739611906197,-834.87,0.00012684,2]
[353151066,1739611906207,-505.21,0.00012684,2]
[353151067,1739611906216,-622.66,0.00012684,2]
[353151068,1739611906225,-824.06,0.00012684,2]
[353151069,1739611906235,-1491.64,0.00012684,2]
[353151070,1739611906244,-587.54,0.00012684,2]
[353151071,1739611906253,-510.9,0.00012684,2]
[353151072,1739611906262,-1098.7,0.00012684,2]
[353151073,1739611906272,-879.19,0.00012684,2]
[353151074,1739611906283,-697.57,0.00012684,2]
[353151075,1739611906292,-845.88,0.00012684,2]
[353151076,1739611906301,-500.0,0.00012684,2]
[353151077,1739611906310,-500.0,0.00012684,2]
[353151078,1739611906320,-927.84,0.00012684,2]
[353151079,1739611906330,-500.0,0.00012684,2]
[353151080,1739611906339,-910.15,0.00012684,2]
[353151081,1739611906349,-1188.23,0.00012684,2]
[353151082,1739611906359,-677.74,0.00012684,2]
[353151083,1739611906369,-1676.44,0.00012684,2]
[353151084,1739611906378,-964.59,0.00012684,2]
[353151085,1739611906388,-1174.04,0.00012684,2]
[353151086,1739611906397,-728.47,0.00012684,2]
[353151087,1739611906408,-703.23,0.00012684,2]
[353151088,1739611906417,-1086.08,0.00012684,2]
[353151089,1739611906427,-1604.66,0.00012684,2]
[353151090,1739611906438,-748.0,0.00012684,2]
[353151091,1739611906449,-957.02,0.00012684,2]
[353151092,1739611906458,-704.0,0.00012684,2]
[353151093,1739611906468,-623.33,0.00012684,2]
[353151094,1739611906479,-2157.01,0.00012684,2]
[353151095,1739611906489,-280.0,0.0001269,2]
[353151096,1739611906498,-202.0,0.0001269,2]
[353151097,1739611906508,-2059.35710585,0.000127,3]
[353151098,1739611906517,-599.16,0.00012715,2]
[353151099,1739611906528,-2235.0988813,0.00012758,2]
[353151100,1739611906537,-5780.5848317,0.00012758,2]
[353151101,1739611906547,-3257.402858,0.00012758,2]
[353151102,1739611906556,-1388.8657652,0.00012758,2]
[353151103,1739611906566,-872.98,0.00012765,2]
[353151104,1739611906576,-872.98,0.00012765,2]
[353151105,1739611906585,-872.98,0.00012765,2]
[353151106,1739611906599,-872.98,0.00012765,2]
[353151107,1739611906612,-873.12400217,0.00012765,2]
[353151108,1739611906622,-1506.85,0.00012765,2]
[353151109,1739611906633,-1506.85,0.00012765,2]
[353151110,1739611906642,-1506.85,0.00012765,2]
[353151111,1739611906654,-1506.85,0.00012765,2]
[353151112,1739611906663,-1507.0624449,0.00012765,2]
[353151113,1739611906672,-500.0,0.00012766,2]
[353151114,1739611906682,-533.638194,0.00012767,2]
[353151115,1739611906693,-569.681091,0.00012767,2]
[353151116,1739611906704,-500.0,0.00012767,2]
[353151117,1739611906713,-661.16,0.00012767,2]
[353151118,1739611906723,-602.88,0.00012767,2]
[353151119,1739611906732,-602.21,0.00012767,2]
[353151120,1739611906742,-559.76,0.00012767,2]
[353151121,1739611906752,-432.18510209,0.00012767,2]
[353151122,1739611906761,-642.55,0.00012767,2]
[353151123,1739611906771,-510.53447637,0.00012767,2]
[353151124,1739611906780,-509.2,0.00012767,2]
[353151125,1739611906790,-583.23,0.00012767,2]
[353151126,1739611906799,-588.51,0.00012767,2]
[353151127,1739611906810,-666.54,0.00012767,2]
[353151128,1739611906819,-553.58,0.00012767,2]
[353151129,1739611906829,-656.03,0.00012767,2]
[353151130,1739611906839,-569.62,0.00012767,2]
[353151131,1739611906849,-628.27,0.00012767,2]
[353151132,1739611906859,-619.35,0.00012767,2]
[353151133,1739611906869,-682.02,0.00012767,2]
[353151134,1739611906879,-572.09,0.00012767,2]
[353151135,1739611906888,-812.88,0.00012767,2]
[353151136,1739611906898,-217.64108906,0.00012767,2]
[353151137,1739611906908,-672.16,0.00012767,2]
[353151138,1739611906917,-500.0,0.00012767,2]
[353151139,1739611906928,-575.78,0.00012767,2]
[353151140,1739611906938,-615.98,0.00012767,2]
[353151141,1739611906949,-500.0,0.00012767,2]
[353151142,1739611906959,-607.55097917,0.00012767,2]
[353151143,1739611906968,-403.53658349,0.00012767,2]
[353151144,1739611906978,-691.81,0.00012767,2]
[353151145,1739611906989,-778.06,0.00012767,2]
[353151146,1739611906999,-536.79,0.00012767,2]
[353151147,1739611907009,-638.9,0.00012767,2]
[353151148,1739611907019,-676.69,0.00012767,2]
[353151149,1739611907030,-568.45,0.00012767,2]
[353151150,1739611907040,-1057.92,0.00012767,2]
[353151151,1739611907050,-1086.69,0.00012767,2]
[353151152,1739611907059,-298.73721668,0.00012767,2]
[353151153,1739611907070,-829.19,0.00012767,2]
[353151154,1739611907079,-627.28684898,0.00012767,2]
[353151155,1739611907089,-793.24,0.00012767,2]
[353151156,1739611907099,-615.24,0.00012767,2]
[353151157,1739611907109,-783.17,0.00012767,2]
[353151158,1739611907119,-991.47,0.00012767,2]
[353151159,1739611907128,-1433.75,0.00012767,2]
[353151160,1739611907138,-971.58,0.00012767,2]
[353151161,1739611907148,-789.55,0.00012767,2]
[353151162,1739611907158,-552.21,0.00012767,2]
[353151163,1739611907168,-1175.04,0.00012767,2]
[353151164,1739611907179,-473.1427571,0.00012767,2]
[353151165,1739611907189,-731.56,0.00012767,2]
[353151166,1739611907199,-2056.44,0.00012767,2]
[353151167,1739611907209,-529.5,0.00012767,2]
[353151168,1739611907219,-895.05,0.00012767,2]
[353151169,1739611907230,-717.51,0.00012767,2]
[353151170,1739611907240,-610.86,0.00012767,2]
[353151171,1739611907250,-1754.36,0.00012767,2]
[353151172,1739611907259,-743.87,0.00012767,2]
[353151173,1739611907269,-1009.67,0.00012767,2]
[353151174,1739611907280,-2982.91,0.00012767,2]
[353151175,1739611907290,-995.96,0.00012767,2]
[353151176,1739611907300,-1159.35,0.00012767,2]
[353151177,1739611907309,-581.33,0.00012767,2]
[353151178,1739611907319,-779.91,0.00012767,2]
[353151179,1739611907329,-735.73,0.00012767,2]
[353151180,1739611907339,-1222.91,0.00012767,2]
[353151181,1739611907349,-1141.54,0.00012767,2]
[353151182,1739611907359,-921.4,0.00012767,2]
[353151183,1739611907369,-657.56,0.00012767,2]
[353151184,1739611907379,-802.93,0.00012767,2]
[353151185,1739611907389,-560.26,0.00012767,2]
[353151186,1739611907399,-646.72,0.00012767,2]
[353151187,1739611907409,-1756.73,0.00012767,2]
[353151188,1739611907418,-2263.15,0.00012767,2]
[353151189,1739611907427,-630.63,0.00012767,2]
[353151190,1739611907437,-645.55,0.00012767,2]
[353151191,1739611907447,-904.92,0.00012767,2]
[353151192,1739611907456,-864.22,0.00012767,2]
[353151193,1739611907466,-830.74,0.00012767,2]
[353151194,1739611907475,-769.25,0.00012767,2]
[353151195,1739611907485,-897.43,0.00012767,2]
[353151196,1739611907495,-1011.81,0.00012767,2]
[353151197,1739611907504,-1292.79,0.00012767,2]
[353151198,1739611907514,-500.0,0.00012767,2]
[353151199,1739611907525,-1639.04,0.00012767,2]
[353151200,1739611907536,-695.46,0.00012767,2]
[353151201,1739611907545,-746.86,0.00012767,2]
[353151202,1739611907554,-850.54,0.00012767,2]
[353151203,1739611907564,-734.88,0.00012767,2]
[353151204,1739611907574,-1135.06,0.00012767,2]
[353151205,1739611907584,-834.87,0.00012767,2]
[353151206,1739611907594,-505.21,0.00012767,2]
[353151207,1739611907610,-824.06,0.00012767,2]
[353151208,1739611907620,-622.66,0.00012767,2]
[353151209,1739611907629,-1491.64,0.00012767,2]
[353151210,1739611907639,-587.54,0.00012767,2]
[353151211,1739611907650,-510.9,0.00012767,2]
[353151212,1739611907660,-1098.7,0.00012767,2]
[353151213,1739611907670,-879.19,0.00012767,2]
[353151214,1739611907680,-697.57,0.00012767,2]
[353151215,1739611907689,-845.88,0.00012767,2]
[353151216,1739611907700,-592.69,0.00012767,2]
[353151217,1739611907709,-500.0,0.00012767,2]
[353151218,1739611907720,-927.84,0.00012767,2]
[353151219,1739611907729,-500.0,0.00012767,2]
[353151220,1739611907739,-910.15,0.00012767,2]
[353151221,1739611907749,-1188.23,0.00012767,2]
[353151222,1739611907758,-677.74,0.00012767,2]
[353151223,1739611907768,-1676.44,0.00012767,2]
[353151224,1739611907778,-964.59,0.00012767,2]
[353151225,1739611907788,-1174.04,0.00012767,2]
[353151226,1739611907797,-728.47,0.00012767,2]
[353151227,1739611907809,-703.23,0.00012767,2]
[353151228,1739611907819,-1086.08,0.00012767,2]
[353151229,1739611907828,-1604.66,0.00012767,2]
[353151230,1739611907837,-957.02,0.00012767,2]
[353151231,1739611907846,-748.0,0.00012767,2]
[353151232,1739611907855,-704.0,0.00012767,2]
[353151233,1739611907865,-623.33,0.00012767,2]
[353151234,1739611907874,-2157.01,0.00012767,2]
[353151235,1739611907884,-500.0,0.00012808,2]
[353151236,1739611907894,-1100.0,0.00012808,2]
[353151237,1739611907904,-1356.16,0.00012848,2]
[353151238,1739611907914,-1356.16,0.00012848,2]
[353151239,1739611907924,-1356.16,0.00012848,2]
[353151240,1739611907934,-1356.16,0.00012848,2]
[353151241,1739611907944,-1356.32936805,0.00012848,2]
[353151242,1739611907953,-533.638194,0.00012849,2]
[353151243,1739611907963,-569.681091,0.00012849,2]
[353151244,1739611907973,-256.2438418,0.00012849,2]
[353151245,1739611907983,-661.3654827,0.00012849,2]
[353151246,1739611907993,-602.97357068,0.00012849,2]
[353151247,1739611908003,-602.34116535,0.00012849,2]
[353151248,1739611908013,-559.84841239,0.00012849,2]
[353151249,1739611908023,-642.76647723,0.00012849,2]
[353151250,1739611908033,-509.39201796,0.00012849,2]
[353151251,1739611908043,-583.33254176,0.00012849,2]
[353151252,1739611908054,-588.53110851,0.00012849,2]
[353151253,1739611908065,-666.54410651,0.00012849,2]
[353151254,1739611908074,-553.78271339,0.00012849,2]
[353151255,1739611908084,-656.05020132,0.00012849,2]
[353151256,1739611908249,-569.75563625,0.00012849,2]
[353151257,1739611908260,-628.45858131,0.00012849,2]
[353151258,1739611908270,-619.43180108,0.00012849,2]
[353151259,1739611908281,-682.15031176,0.00012849,2]
[353151260,1739611908290,-572.12900013,0.00012849,2]
[353151261,1739611908300,-812.95791879,0.00012849,2]